fUST/lending_fUST_20241012
["ID","MTS","AMOUNT","RATE_DAILY","PERIOD"]
[340163592,1728726640269,-500.0,0.00054794,120]
[340163593,1728726640282,-500.0,0.00054794,60]
[340163594,1728726640293,-500.0,0.00054794,120]
[340163595,1728726640305,-2007.23,0.00054794,120]
[340163596,1728726640316,-317.1992905,0.00054795,120]
[340163597,1728726640327,-2199.3,0.00055,120]
[340163598,1728726640338,-280.69847979,0.00055068,120]
[340163599,1728726640349,-500.0,0.00055068,120]
[340163600,1728726640360,-500.0,0.00055068,120]
[340163601,1728726640372,-500.0,0.00055068,120]
[340163602,1728726640385,-2007.23,0.00055068,120]
[340163603,1728726640396,-500.0,0.00055342,120]
[340163604,1728726640407,-500.0,0.00055342,120]
[340163605,1728726640417,-500.0,0.00055342,120]
[340163606,1728726640429,-500.0,0.00055342,120]
[340163607,1728726640440,-500.0,0.00055342,60]
[340163608,1728726640450,-500.0,0.00055342,120]
[340163609,1728726640460,-2007.23,0.00055342,120]
[340163610,1728726640471,-196.321058,0.00055342,2]
[340163611,1728726640482,-188.017144,0.00055342,2]
[340163612,1728726640493,-500.0,0.00055616,120]
[340163613,1728726640506,-605.37138429,0.00055616,120]
[340163614,1728726640518,-500.0,0.00055616,120]
[340163615,1728726640531,-500.0,0.00055616,120]
[340163616,1728726640541,-500.0,0.00055616,120]
[340163617,1728726640553,-2007.23,0.00055616,120]
[340163618,1728726640563,-195.15,0.0005587,10]
[340163619,1728726640574,-162.63,0.0005587,10]
[340163620,1728726640584,-74406.1817927,0.0005588,9]
[340163621,1728726640594,-6491.28530283,0.0005588,9]
[340163622,1728726640604,-500.0,0.0005589,120]
[340163623,1728726640613,-500.0,0.0005589,120]
[340163624,1728726640623,-500.0,0.0005589,120]
[340163625,1728726640635,-500.0,0.0005589,60]
[340163626,1728726640647,-500.0,0.0005589,120]
[340163627,1728726640658,-2007.23,0.0005589,120]
[340163628,1728726640667,-500.0,0.00056105,7]
[340163629,1728726640678,-500.0,0.00056164,120]
[340163630,1728726640689,-500.0,0.00056164,120]
[340163631,1728726640699,-500.2419537,0.00056164,120]
[340163632,1728726640709,-500.0,0.00056164,120]
[340163633,1728726640720,-2007.23,0.00056164,120]
[340163634,1728726640733,-6522.66171486,0.00056295,120]
[340163635,1728726640743,-413.85,0.00056438,120]
[340163636,1728726640753,-500.0,0.00056438,120]
[340163637,1728726640765,-500.0,0.00056438,60]
[340163638,1728726640776,-500.0,0.00056438,120]
[340163639,1728726640787,-2007.23,0.00056438,120]
[340163640,1728726640798,-500.0,0.00056712,120]
[340163641,1728726640809,-500.0,0.00056712,120]
[340163642,1728726640818,-2007.23,0.00056712,120]
[340163643,1728726640828,-148812.363585,0.0005689,9]
[340163644,1728726640838,-12982.5706057,0.0005689,9]
[340163645,1728726640849,-989.13734657,0.0005689,120]
[340163655,1728726643342,-10.86265343,0.0005689,120]
[340163656,1728726643352,-877.09391892,0.000569,120]
[340163665,1728726648749,2001.31547707,0.00032001,2]
[340163668,1728726830047,180.14,0.00034,120]
[340163698,1728727534155,-1607.886094,0.00045689,2]
[340163699,1728727534180,-550.0,0.0004583,30]
[340163700,1728727534201,-550.0,0.0004583,5]
[340163701,1728727534226,-6148.37160197,0.00045831,120]
[340163702,1728727534249,-4829.9269874,0.00045932,2]
[340163703,1728727534272,-172.0,0.00047398,2]
[340163704,1728727534294,-3145.1778581,0.00047398,2]
[340163705,1728727534320,-770.0,0.00048588,5]
[340163706,1728727534343,-5000.0,0.0005,70]
[340163707,1728727534365,-988.57636788,0.0005,10]
[340163708,1728727534386,-239.95908237,0.00050413,120]
[340163709,1728727615092,-272.40039226,0.00050161,18]
[340163711,1728727628120,-425.11149734,0.00050161,18]
[340163712,1728727628142,-220.0,0.0005176,120]
[340163713,1728727628162,-168.52782215,0.00051761,120]
[340163714,1728727628183,-160.527713,0.00052877,120]
[340163715,1728727628207,-500.0,0.00054706,7]
[340163716,1728727628228,-307.71548,0.00054794,120]
[340163717,1728727628252,-1146.834006,0.00054794,120]
[340163718,1728727638152,-525.855994,0.00054794,120]
[340163719,1728727638177,-153.0,0.00054795,120]
[340163720,1728727638204,-210.0488919,0.00054795,120]
[340163721,1728727638226,-210.0488919,0.00054795,120]
[340163722,1728727638249,-210.0488919,0.00054795,120]
[340163723,1728727638272,-500.0,0.00054812,120]
[340163724,1728727638294,-500.0,0.00054812,60]
[340163725,1728727638315,-500.0,0.00054812,120]
[340163726,1728727638337,-583.23952113,0.00054812,120]
[340163727,1728727638358,-500.0,0.00054812,120]
[340163728,1728727638380,-261.08571821,0.00054999,120]
[340163729,1728727638400,-3935.88668939,0.00055,120]
[340163730,1728727638422,-1672.69,0.00055068,120]
[340163731,1728727638443,-500.2419537,0.00055086,120]
[340163732,1728727638464,-500.0,0.00055086,120]
[340163733,1728727638485,-500.0,0.00055086,120]
[340163734,1728727638507,-1672.69,0.00055342,120]
[340163735,1728727638528,-261.566277,0.00055342,2]
[340163736,1728727638549,-500.0,0.0005536,60]
[340163737,1728727638569,-500.0,0.0005536,120]
[340163738,1728727638592,-500.0,0.0005536,120]
[340163739,1728727638616,-1672.69,0.00055616,120]
[340163740,1728727638641,-500.0,0.00055634,120]
[340163741,1728727638662,-500.0,0.00055634,120]
[340163742,1728727638684,-1360.29880587,0.0005588,2]
[340163743,1728727639135,-3091.87534692,0.0005588,2]
[340163744,1728727654106,-162.0,0.00048,90]
[340163745,1728727654129,-182.72,0.0005588,30]
[340163746,1728727654154,-177.69,0.0005588,10]
[340163747,1728727654179,-152.27,0.0005588,30]
[340163748,1728727654204,-761.35,0.0005588,30]
[340163749,1728727654230,-1000.0,0.0005588,120]
[340163750,1728727654254,-500.0,0.00055889,120]
[340163751,1728727654277,-224.75422911,0.00055889,31]
[340163752,1728727654301,-373.15787598,0.00055889,120]
[340163753,1728727654326,-500.0,0.00055889,120]
[340163754,1728727654353,-500.0,0.00055889,120]
[340163755,1728727654377,-159.10151242,0.00055889,120]
[340163756,1728727654400,-500.0,0.00055889,120]
[340163757,1728727654423,-500.0,0.00055889,120]
[340163758,1728727654447,-500.0,0.00055889,120]
[340163759,1728727654470,-500.0,0.00055889,120]
[340163760,1728727654497,-500.0,0.00055889,120]
[340163761,1728727654520,-500.0,0.00055889,120]
[340163762,1728727654545,-500.0,0.00055889,120]
[340163763,1728727654567,-500.0,0.00055889,120]
[340163764,1728727654591,-500.0,0.00055889,120]
[340163765,1728727654614,-354.03391411,0.00055889,120]
[340163768,1728727760111,-500.0,0.00054812,120]
[340163769,1728727760136,-500.0,0.00055086,120]
[340163770,1728727760160,-413.85,0.0005536,120]
[340163771,1728727760185,-1470.71571148,0.0005564,2]
[340163772,1728727760210,-4918.6972816,0.00055693,120]
[340163773,1728727760235,-273.0,0.00055792,15]
[340163774,1728727760260,-2587.40041767,0.00055793,28]
[340163775,1728727760285,-1000.0,0.0005588,120]
[340163776,1728727760311,-145.96608589,0.00055889,120]
[340163777,1728727760336,-500.0,0.00055889,120]
[340163778,1728727760360,-500.0,0.00055889,120]
[340163779,1728727760383,-500.0,0.00055889,120]
[340163780,1728727760406,-550.0,0.00055889,120]
[340163781,1728727760432,-203.65145908,0.0005589,2]
[340163782,1728727760456,-1672.69,0.0005589,120]
[340163783,1728727760480,-34213.29918428,0.0005589,120]
[340163784,1728727813190,813.23,0.00028,10]
[340163884,1728727838399,-343.54170521,0.00041532,120]
[340163911,1728727840140,-1230.24829479,0.00041532,120]
[340163912,1728727840149,-500.0,0.00054812,120]
[340163913,1728727840159,-517.21902393,0.00055086,120]
[340163914,1728727840168,-1000.0,0.0005587,120]
[340163915,1728727840178,-1324.22,0.00055889,120]
[340163916,1728727840187,-50202.16682805,0.0005589,120]
[340163917,1728727840196,-203.65145906,0.00055893,2]
[340163918,1728727840206,-203.65145906,0.00055895,2]
[340163919,1728727840215,-203.65145906,0.00055898,2]
[340163920,1728727840224,-203.65145906,0.000559,2]
[340163921,1728727840233,-500.0,0.00055908,60]
[340163922,1728727840243,-500.0,0.00055908,120]
[340163923,1728727840252,-500.0,0.00055908,120]
[340163924,1728727840262,-888.45,0.0005596,10]
[340163925,1728727840275,-133764.12052565,0.0005597,9]
[340163953,1728727846442,-247.5563924,0.0005597,9]
[340163954,1728727846709,-2081.043515,0.0005597,9]
[340163955,1728727846807,-325.4129465,0.0005597,9]
[340163996,1728728321426,205922.0,0.00032,2]
[340164002,1728728728619,170.0,0.0003,120]
[340164003,1728728730110,-174.119756,0.00046342,2]
[340164004,1728728730139,-150.0,0.0005,120]
[340164005,1728728730166,-160.817654,0.00052877,120]
[340164006,1728728730192,-169.0,0.00053,120]
[340164007,1728728730217,-201.0,0.00053,120]
[340164008,1728728730243,-424.9280446,0.00054795,120]
[340164009,1728728730268,-500.0,0.00054812,120]
[340164010,1728728730294,-205.94288566,0.0005485,120]
[340164015,1728728950117,-1499.99999901,0.0003278,2]
[340164016,1728728950138,-3111.97454474,0.0003888,120]
[340164017,1728728950157,-7069.8587482,0.00039,2]
[340164018,1728728950177,-1048.51655399,0.0004,10]
[340164019,1728728950199,-7303.1203368,0.00045,120]
[340164020,1728728950219,-160.0,0.00045,2]
[340164021,1728728963637,-20394.2265338,0.00051651,51]
[340164022,1728728972149,-19810.98453413,0.00052,7]
[340164023,1728728972175,-170.0,0.00053,120]
[340164024,1728728972199,-2648.21715716,0.00054899,28]
[340164025,1728728972226,-500.0,0.00054998,120]
[340164026,1728728972250,-450.0,0.00054998,120]
[340164027,1728728972274,-500.0,0.00054999,120]
[340164028,1728728972297,-500.0,0.00054999,60]
[340164029,1728728972320,-500.0,0.00054999,120]
[340164030,1728728972342,-504.12419494,0.00054999,120]
[340164031,1728728972365,-500.0,0.00054999,120]
[340164032,1728728972388,-500.0,0.00054999,120]
[340164033,1728728972409,-500.0,0.00054999,120]
[340164034,1728728972437,-500.0,0.00054999,120]
[340164035,1728728972462,-500.0,0.00054999,18]
[340164036,1728728972486,-500.0,0.00054999,120]
[340164037,1728728972509,-500.0,0.00054999,120]
[340164038,1728728972531,-1269.04,0.00054999,120]
[340164039,1728728972555,-500.0,0.00054999,120]
[340164040,1728728972579,-500.0,0.00054999,120]
[340164041,1728728972602,-17008.31238658,0.00055,60]
[340164059,1728729008690,5947.35470613,0.00041437,120]
[340164060,1728729013634,5947.3547061,0.00048465,120]
[340164061,1728729023458,825.54664717,0.00041437,30]
[340164101,1728729032299,-1230.25,0.00041537,120]
[340164103,1728729032309,-2506.00776345,0.00041537,2]
[340164105,1728729032319,-514.92915389,0.00041537,2]
[340164107,1728729032328,-291.41257845,0.00041537,2]
[340164109,1728729032338,-4081.48711011,0.00041537,2]
[340164220,1728729040361,-75.33036954,0.00041537,2]
[340164221,1728729040371,-320.84192019,0.00041537,2]
[340164222,1728729040381,-286.27610455,0.00041537,2]
[340164223,1728729040391,-1186.88660632,0.00041537,2]
[340164224,1728729040400,-12782.39786389,0.00041537,2]
[340164225,1728729040411,-37983.00038759,0.00041537,2]
[340164226,1728729040421,-163.54262327,0.00041537,2]
[340164227,1728729040432,-4127.56548919,0.00041537,2]
[340164228,1728729040443,-4663.19727532,0.00041537,120]
[340164229,1728729040453,-10114.10799158,0.00041537,2]
[340164230,1728729040463,-9847.05766869,0.00041537,2]
[340164231,1728729040473,-1168.12288359,0.00041537,2]
[340164232,1728729040483,-154.54518119,0.00041537,2]
[340164233,1728729040493,-173.80642027,0.00041537,2]
[340164234,1728729040502,-15332.63501493,0.00041537,2]
[340164235,1728729040512,-1519.4078853,0.00041537,2]
[340164236,1728729040522,-20849.2726438,0.00041537,2]
[340164237,1728729040532,-437.80486553,0.00041537,2]
[340164238,1728729040542,-223.63120349,0.00041537,2]
[340164239,1728729040552,-1020.07136658,0.00041537,2]
[340164240,1728729040562,-122087.23174445,0.00041537,2]
[340164241,1728729040574,-31950.00479289,0.00041537,2]
[340164242,1728729040583,-18118.35964389,0.00041537,2]
[340164243,1728729040593,-4985.73555456,0.00041537,120]
[340164244,1728729040604,-1555.46999831,0.00041537,2]
[340164245,1728729040613,-1525.27573847,0.00041537,2]
[340164246,1728729040623,-906.00737581,0.00041537,2]
[340164247,1728729040632,-3357.90161346,0.00041537,2]
[340164248,1728729040642,-175.68201096,0.00041537,2]
[340164249,1728729040652,-459.14584325,0.00041537,2]
[340164250,1728729040662,-831.70319742,0.00041537,2]
[340164251,1728729040673,-222.78188852,0.00041537,2]
[340164252,1728729040683,-9249.12592749,0.00041537,20]
[340164253,1728729040698,-226.79078446,0.00041537,120]
[340164254,1728729040708,-2747.59304606,0.00041537,4]
[340164255,1728729040718,-886.319,0.00041537,2]
[340164256,1728729040732,-1480.0,0.00041537,2]
[340164257,1728729040741,-221.12071633,0.00041537,2]
[340164258,1728729040751,-500.0,0.00054794,18]
[340164259,1728729040761,-1216.16,0.00054794,120]
[340164260,1728729040771,-500.0,0.00054794,120]
[340164261,1728729040781,-500.0,0.00054999,120]
[340164262,1728729040790,-33105.68761342,0.00055,60]
[340164263,1728729040801,-1000.0,0.00055,120]
[340164264,1728729040810,-3470.9,0.00055,120]
[340164265,1728729040820,-288.02,0.00055068,18]
[340164266,1728729040829,-1216.16,0.00055068,120]
[340164267,1728729040839,-500.0,0.00055068,120]
[340164268,1728729040850,-8455.81419309,0.00055262,64]
[340164269,1728729040859,-12243.54565498,0.00055262,84]
[340164270,1728729040869,-69232.8829415,0.00055263,8]
[340164271,1728729040879,-6166.72103747,0.00055263,8]
[340164272,1728729040888,-500.0,0.00055273,120]
[340164273,1728729040898,-500.0,0.00055273,120]
[340164274,1728729040908,-500.0,0.00055273,120]
[340164275,1728729040918,-500.0,0.00055273,120]
[340164276,1728729040928,-532.66,0.00055273,120]
[340164277,1728729040938,-500.0,0.00055273,120]
[340164278,1728729040948,-500.0,0.00055273,120]
[340164279,1728729040958,-500.0,0.00055273,120]
[340164280,1728729040968,-1216.16,0.00055342,120]
[340164281,1728729040977,-500.0,0.00055342,120]
[340164282,1728729040986,-248.487963,0.00055342,2]
[340164283,1728729040996,-2184.31001233,0.00055427,2]
[340164284,1728729041006,-151.0,0.00055427,120]
[340164285,1728729041016,-1000.0,0.00055437,120]
[340164286,1728729041025,-1898.80050196,0.00055494,120]
[340164302,1728729043598,-154.23204424,0.00055494,120]
[340164303,1728729043609,-3894.3221599,0.00055494,120]
[340164304,1728729043619,-151.0,0.00055527,120]
[340164305,1728729043628,-240.70718509,0.00055527,8]
[340164307,1728729046321,-6435.2,0.00055527,8]
[340164308,1728729046333,-16126.03711144,0.00055527,8]
[340164321,1728729930145,-194.814103,0.00036432,2]
[340164322,1728729930183,-122.50430186,0.00036532,2]
[340164331,1728730032124,-3000.0,0.00035004,2]
[340164332,1728730032149,-359.00741783,0.00035821,2]
[340164333,1728730053117,-40.99258217,0.00035821,2]
[340164334,1728730053140,-400.0,0.00035821,2]
[340164335,1728730053162,-9183.09998538,0.00035822,2]
[340164358,1728730146128,-171.67747,0.00034537,2]
[340164359,1728730146155,-286.7972292,0.00035484,2]
[340164360,1728730146184,-400.0,0.00035821,2]
[340164361,1728730146211,-400.0,0.00035821,2]
[340164362,1728730146236,-7443.49970983,0.00035822,2]
[340164363,1728730153171,-8273.40030479,0.00035822,2]
[340164364,1728730153195,-575.571653,0.00035899,2]
[340164365,1728730153218,-500.61705105,0.00036432,2]
[340164366,1728730153246,-72.30980114,0.00036532,2]
[340164367,1728730153271,-575.571653,0.00036583,2]
[340164368,1728730153300,-194.814103,0.00036632,2]
[340164369,1728730153330,-194.814103,0.00036732,2]
[340164370,1728730153360,-194.814103,0.00036831,2]
[340164371,1728730153387,-194.814103,0.00036931,2]
[340164372,1728730153415,-194.814103,0.00037031,2]
[340164373,1728730153441,-194.814103,0.00037131,2]
[340164374,1728730153466,-164.0,0.0003721,2]
[340164375,1728730153491,-194.814103,0.00037231,2]
[340164376,1728730153514,-575.571653,0.00037268,2]
[340164377,1728730153538,-194.814103,0.00037331,2]
[340164378,1728730153562,-194.814103,0.00037431,2]
[340164379,1728730153589,-194.814103,0.00037531,2]
[340164380,1728730153614,-194.814103,0.00037631,2]
[340164381,1728730153639,-194.814103,0.00037731,2]
[340164382,1728730153665,-194.814103,0.00037831,2]
[340164383,1728730153689,-2851.78624865,0.00037831,2]
[340164384,1728730153713,-194.814103,0.00037931,2]
[340164385,1728730153739,-194.814103,0.0003803,2]
[340164386,1728730153766,-194.814103,0.0003813,2]
[340164387,1728730153791,-194.814103,0.0003823,2]
[340164388,1728730153819,-194.814103,0.0003833,2]
[340164389,1728730153847,-560.0,0.00038375,5]
[340164390,1728730153873,-362.39880104,0.00039,120]
[340164391,1728730153900,-523.15975143,0.00039,120]
[340164392,1728730153925,-560.0,0.00039403,30]
[340164393,1728730154064,-742.0,0.00041112,5]
[340164394,1728730154088,-797.82825075,0.00041437,30]
[340164395,1728730154113,-774.82285638,0.00041537,14]
[340164396,1728730154136,-2851.78624858,0.00042518,28]
[340164397,1728730154157,-783.0,0.00043343,30]
[340164398,1728730154180,-500.0,0.0004574,120]
[340164399,1728730154203,-500.0,0.0004574,120]
[340164400,1728730154225,-500.0,0.0004574,120]
[340164401,1728730154247,-368.70030854,0.0004574,120]
[340164402,1728730154270,-500.0,0.0004574,120]
[340164403,1728730154294,-500.0,0.0004574,120]
[340164404,1728730154319,-452.77631977,0.0004574,120]
[340164405,1728730154342,-500.0,0.0004574,120]
[340164406,1728730154366,-500.0,0.0004574,120]
[340164407,1728730154389,-500.0,0.0004574,120]
[340164408,1728730154410,-500.0,0.0004574,120]
[340164409,1728730154433,-311.60873556,0.0004574,120]
[340164410,1728730154458,-500.0,0.0004574,120]
[340164411,1728730154481,-500.0,0.0004574,120]
[340164412,1728730154505,-500.0,0.0004574,120]
[340164413,1728730154529,-500.0,0.0004574,120]
[340164414,1728730154551,-343.81214642,0.0004574,120]
[340164415,1728730154575,-636.94318459,0.0004574,120]
[340164416,1728730154597,-172.352,0.00045741,75]
[340164417,1728730154621,-171.0,0.00047,90]
[340164418,1728730154647,-2851.78624858,0.00047205,28]
[340164419,1728730154669,-685.0,0.00047677,30]
[340164420,1728730154693,-289.52682743,0.000481,7]
[340164421,1728730154714,-473.25284423,0.00048804,2]
[340164422,1728730154737,-171.0,0.00048904,90]
[340164423,1728730154759,-473.25284422,0.00049363,2]
[340164424,1728730155261,-473.25284422,0.00049923,2]
[340164425,1728730155284,-473.25284422,0.00050482,2]
[340164426,1728730155309,-156.18,0.000507,48]
[340164427,1728730155335,-1488.0,0.00051021,10]
[340164428,1728730155359,-2323.27,0.00051021,10]
[340164429,1728730155386,-1936.06,0.00051021,10]
[340164430,1728730155411,-1613.38,0.00051021,10]
[340164431,1728730155434,-212.55308078,0.0005103,120]
[340164432,1728730155456,-183.15367862,0.0005103,120]
[340164433,1728730155482,-97918.69916009,0.00051031,7]
[340164436,1728730169096,-24323.39832561,0.00051031,7]
[340164457,1728730232372,-157.75094808,0.00050941,2]
[340164459,1728730232382,-157.75094807,0.00050991,2]
[340164461,1728730232392,-531.8855005,0.00051031,120]
[340164463,1728730232401,-397.32240963,0.00051031,7]
[340164466,1728730232413,-34525.20759067,0.00051031,7]
[340164468,1728730232423,-11716.7699711,0.00051031,7]
[340164470,1728730232435,-155.28,0.00051031,30]
[340164472,1728730232445,-776.42,0.00051031,30]
[340164474,1728730232456,-778.06,0.00051031,10]
[340164476,1728730232465,-1214.81,0.00051031,10]
[340164478,1728730232475,-1012.34,0.00051031,10]
[340164480,1728730232488,-88888.0,0.00051041,120]
[340164482,1728730232498,-1965.87901107,0.00051041,2]
[340164484,1728730232507,-157.75094807,0.00051041,2]
[340164487,1728730232517,-235746.941229,0.00051131,7]
[340164488,1728730232527,-41008.6948989,0.00051131,7]
[340164490,1728730232537,-11716.7699711,0.00051141,7]
[340164492,1728730232547,-151.0,0.00051151,120]
[340164494,1728730232558,-2589.95,0.000512,30]
[340164495,1728730232567,-667.75,0.000512,30]
[340164497,1728730232576,-173.0,0.00051349,120]
[340164498,1728730232586,-91294.08362145,0.00051561,61]
[340164500,1728730232596,-2851.78624858,0.00051892,28]
[340164501,1728730232605,-600.0,0.000528,2]
[340164502,1728730232615,-161.174476,0.00052877,120]
[340164503,1728730232625,-162.0,0.00053,120]
[340164504,1728730232634,-156.18,0.000542,54]
[340164505,1728730232643,-156.18,0.000542,54]
[340164506,1728730232653,-150.0,0.00054456,120]
[340164507,1728730232663,-6097.5,0.00054553,2]
[340164508,1728730232672,-5858.38498556,0.00054784,8]
[340164509,1728730232685,-1250.0,0.00054794,120]
[340164510,1728730232695,-499.782398,0.00054794,120]
[340164511,1728730232704,-500.0,0.00054794,120]
[340164512,1728730232714,-500.0,0.00054794,120]
[340164513,1728730232723,-226.16,0.00054794,120]
[340164514,1728730232732,-1000.0,0.00054794,120]
[340164515,1728730232742,-500.0,0.00054794,120]
[340164516,1728730232752,-500.0,0.00054794,120]
[340164517,1728730232763,-500.0,0.00054794,120]
[340164518,1728730232773,-500.0,0.00054794,120]
[340164519,1728730232782,-500.0,0.00054794,120]
[340164520,1728730232791,-500.0,0.00054794,60]
[340164521,1728730232802,-500.0,0.00054794,120]
[340164522,1728730232811,-968.46,0.00054794,120]
[340164523,1728730232822,-500.0,0.00054794,18]
[340164524,1728730232832,-500.0,0.00054794,120]
[340164525,1728730232841,-1064.14,0.00054794,120]
[340164526,1728730232853,-500.0,0.00055068,120]
[340164527,1728730232862,-500.0,0.00055068,120]
[340164528,1728730232872,-1000.0,0.00055068,120]
[340164529,1728730232881,-500.0,0.00055068,120]
[340164530,1728730232890,-500.0,0.00055068,120]
[340164531,1728730232899,-500.0,0.00055068,120]
[340164532,1728730232909,-513.5332624,0.00055068,120]
[340164533,1728730232918,-500.0,0.00055068,120]
[340164534,1728730232928,-968.46,0.00055068,120]
[340164535,1728730232942,-500.0,0.00055068,18]
[340164536,1728730232952,-500.0,0.00055068,120]
[340164537,1728730232962,-1064.14,0.00055068,120]
[340164538,1728730232971,-35150.3099134,0.00055094,8]
[340164539,1728730232981,-7668.9636547,0.00055104,64]
[340164540,1728730232990,-11716.7699711,0.00055104,8]
[340164541,1728730233000,-151.0,0.00055104,120]
[340164542,1728730233009,-151.0,0.00055104,120]
[340164543,1728730233019,-66778.971689,0.00055114,2]
[340164544,1728730233028,-151.0,0.00055114,120]
[340164545,1728730233038,-151.0,0.00055141,120]
[340164546,1728730233048,-151.0,0.00055141,120]
[340164547,1728730233057,-150.62072916,0.00055258,2]
[340164548,1728730233067,-6024.38445897,0.00055304,2]
[340164549,1728730233076,-500.0,0.00055342,120]
[340164550,1728730233085,-500.0,0.00055342,120]
[340164551,1728730233098,-530.32938504,0.00055342,120]
[340164552,1728730233108,-500.0,0.00055342,120]
[340164553,1728730233117,-500.0,0.00055342,120]
[340164554,1728730233127,-500.0,0.00055342,120]
[340164555,1728730233136,-968.46,0.00055342,120]
[340164556,1728730233145,-500.0,0.00055342,18]
[340164557,1728730233154,-200.0,0.00055342,120]
[340164558,1728730233165,-1064.14,0.00055342,120]
[340164559,1728730233175,-400.0,0.00055342,2]
[340164560,1728730233185,-163.569705,0.00055342,2]
[340164561,1728730233195,-151.0,0.00055407,120]
[340164562,1728730233204,-151.0,0.00055407,120]
[340164563,1728730233214,-175.388486,0.00055407,120]
[340164564,1728730233226,-151.0,0.00055507,120]
[340164565,1728730233235,-151.0,0.00055507,120]
[340164566,1728730233244,-151.0,0.00055518,120]
[340164567,1728730233254,-500.0,0.00055616,120]
[340164568,1728730233265,-282.27403953,0.00055616,120]
[340164569,1728730233274,-500.0,0.00055616,120]
[340164570,1728730233283,-525.18955784,0.00055616,120]
[340164571,1728730233292,-968.46,0.00055616,120]
[340164572,1728730233302,-500.0,0.00055616,18]
[340164573,1728730233312,-1064.14,0.00055616,120]
[340164574,1728730233321,-151.0,0.00055661,120]
[340164575,1728730233331,-151.0,0.00055661,120]
[340164576,1728730233340,-150.112233,0.000557,14]
[340164577,1728730233350,-6024.38445897,0.00055823,2]
[340164578,1728730233360,-530.58,0.0005589,120]
[340164579,1728730233370,-500.0,0.0005589,120]
[340164580,1728730233380,-968.46,0.0005589,120]
[340164581,1728730233400,-1064.14,0.0005589,120]
[340164582,1728730233411,-2138.88624843,0.00055952,2]
[340164621,1728730238737,-348.54924273,0.0005103,120]
[340164622,1728730238749,-260.42357183,0.0005103,120]
[340164623,1728730238761,-3885.49821054,0.00055952,2]
[340164624,1728730238773,-1114.61472014,0.00056,84]
[340164625,1728730238786,-5007.15810735,0.00056,84]
[340164626,1728730238795,-40012.48194363,0.00056,120]
[340164672,1728730243535,-324.12373504,0.00056,120]
[340164673,1728730243734,-23944.39432133,0.00056,120]
[340164674,1728730243744,-150.112233,0.00056,13]
[340164675,1728730243755,-151.0,0.00056,120]
[340164676,1728730243766,-151.0,0.00056,120]
[340164677,1728730243777,-499.78,0.00056164,120]
[340164678,1728730243788,-968.46,0.00056164,120]
[340164679,1728730243799,-1064.14,0.00056164,120]
[340164680,1728730243810,-968.46,0.00056438,120]
[340164681,1728730243821,-1064.14,0.00056438,120]
[340164682,1728730243830,-500.0,0.00056485,15]
[340164683,1728730243841,-2851.78624858,0.00056579,28]
[340164684,1728730243853,-504.23492492,0.00056586,15]
[340164685,1728730243864,-2589.95,0.000566,30]
[340164686,1728730243875,-667.75,0.000566,30]
[340164687,1728730243887,-968.46,0.00056712,120]
[340164688,1728730243898,-1064.14,0.00056712,120]
[340164689,1728730243911,-500.0,0.00056919,15]
[340164690,1728730243921,-968.46,0.00056986,120]
[340164691,1728730243931,-1064.14,0.00056986,120]
[340164692,1728730243943,-150.112233,0.00057,16]
[340164693,1728730243954,-526.0,0.00057206,120]
[340164694,1728730243965,-1218.0,0.00057206,120]
[340164695,1728730243975,-968.46,0.0005726,120]
[340164696,1728730243986,-1064.14,0.0005726,120]
[340164697,1728730243995,-968.46,0.00057534,120]